Cogmind - Beta 15 @@@ ROGUE MODE // 2025.05.14 @ 14:59:42 Player: Iry-bot Result: Destroyed by G-34 Mercenary with Small Laser Performance ------------- Evolutions (1) 500 Regions Visited (3) 600 Robots Destroyed (72) 360 Value Destroyed (1783) 1783 Prototype IDs (4) 80 Alien Tech Used (0) 0 Bonus (39) 39 TOTAL SCORE: 3362 Bonus ------- Follower Combat Kills 39 Cogmind --------- Core Integrity 0/400 Matter 300/300 Energy 228/250 System Corruption 5% Temperature Warm (188) Movement Treading (160) Location -9/Storage Parts ------- > --- POWER (1) -------- Ion Engine > --- PROPULSION (2) --- Light Treads Light Treads > --- UTILITY (4) ------ Improved Heat Sink Large Storage Unit Terrain Scanner Light Armor Plating > --- WEAPON (2) ------- Beam Cannon Advanced Beam Cannon > --- INVENTORY (15) --- Ion Engine Light Nuclear Core Light Treads Light Treads Light Treads Improved Heat Sink Weight Redist. System Beam Rifle Beam Rifle Particle Gun Autogun Mini Grenade Launcher Datajack Flail Peak State ------------ > --- POWER ------------ Ion Engine > --- PROPULSION ------- Light Treads Light Treads > --- UTILITY ---------- Improved Heat Sink Large Storage Unit Terrain Scanner Light Armor Plating > --- WEAPON ----------- Advanced Beam Cannon Advanced Beam Cannon > --- INVENTORY -------- Light Treads Light Treads Light Treads Weight Redist. System Beam Rifle Particle Gun Beam Cannon Advanced Beam Cannon Autogun Mini Grenade Launcher Datajack Flail [Rating: 17] Favorites ----------- Power Light Ion Engine Engine Light Ion Engine Propulsion Aluminum Leg Treads Light Treads Leg Aluminum Leg Utility Large Storage Unit Device Heat Sink Storage Large Storage Unit Processor Signal Interpreter Protection Light Armor Plating Weapon Light Cannon Energy Gun Beam Rifle Energy Cannon Advanced Beam Cannon Ballistic Gun Assault Rifle Ballistic Cannon Light Cannon Impact Weapon Flail Build | -11 -10 -9 -9 ------- Run | Yrd Mat Mat Sto Slots Evolved 2 | . . 2 . Power . | . . . . Propulsion . | . . . . Utility 2 | . . 2 . Weapon . | . . . . Parts Attached 57 | 6 13 30 8 Power 9 | 1 2 5 1 Engine 9 | 1 2 5 1 Core . | . . . . Reactor . | . . . . Propulsion 19 | 2 3 11 3 Treads 7 | 2 . 2 3 Leg 12 | . 3 9 . Wheel . | . . . . Hover . | . . . . Flight . | . . . . Utility 16 | 1 4 7 4 Device 7 | . 1 3 3 Storage 5 | 1 2 2 . Processor 2 | . . 2 . Hackware . | . . . . Protection 2 | . 1 . 1 Artifact . | . . . . Weapon 13 | 2 4 7 . Energy Gun 3 | . . 3 . Energy Cannon 4 | . . 4 . Ballistic Gun 2 | 2 . . . Ballistic Cannon 3 | . 3 . . Launcher . | . . . . Special Weapon . | . . . . Impact Weapon 1 | . 1 . . Slashing Weapon . | . . . . Piercing Weapon . | . . . . Special Melee Weapon . | . . . . Unidentified Prototypes 2 | . . 2 . Parts Lost 8 | . 2 5 1 Power 1 | . . . 1 Propulsion 3 | . 1 2 . Utility 3 | . 1 2 . Weapon 1 | . . 1 . Highest Loss Streak 1 | . 1 1 1 To Critical Strikes . | . . . . Average Backups 11 | 2 7 13 13 Power . | . 1 1 . Propulsion 2 | 1 1 2 3 Utility 2 | . 1 3 1 Weapon 4 | . 3 5 6 Tool/Special . | . . . . Unused Backups 19 | . 3 3 13 Power 2 | . . . 2 Propulsion 5 | . 2 . 3 Utility 4 | . . 2 2 Weapon 7 | . 1 1 5 Tool/Special 1 | . . . 1 Average Slot Usage (%) 98 | . 98 98 98 Engine 12 | . 14 10 10 Treads 8 | . 13 . 22 Leg 15 | . 14 20 . Device 16 | . 8 21 22 Storage 12 | . 14 11 11 Processor 5 | . . 10 3 Protection 2 | . 4 . 7 Energy Gun 1 | . . 3 . Energy Cannon 6 | . . 8 20 Ballistic Gun 2 | . 6 . . Ballistic Cannon 11 | . 19 8 . Impact Weapon 1 | . 1 1 1 Peak Build Rating 17 | 6 8 15 17 Average Rating 10 | 4 7 12 15 On Entrance 7 | . 6 8 15 Naked Turns . | . . . . Heaviest Build 38 | 11 32 36 38 Greatest Support 40 | 40 40 40 40 Greatest Overweight (x) 1 | . 1 1 . Average Overweight (x) . | . . . . Largest Inventory Capacity 15 | 8 15 15 15 Average Capacity 13 | 7 10 15 15 Most Carried 15 | 4 11 15 15 Average Carried 11 | 2 7 13 13 Final Capacity 15 | 8 15 15 15 Final Carried 15 | 4 11 15 14 Class Distribution -------------------- 70% | Mutant 25% | Scavenger-Mutant 4% | Commander-Mutant Dominant Class ---------------- Mutant | -10/Materials Mutant | -9/Materials Scavenger-Mutant | -9/Storage Resources | -11 -10 -9 -9 ----------- Run | Yrd Mat Mat Sto Matter Collected 1931 | 226 755 609 341 Remotely . | . . . . Salvage Created 2347 | . 778 922 647 Parts 129 | . 43 53 33 Haulers Intercepted 3 | . . 2 1 Recyclers Shooed 5 | . 2 2 1 Parts Field Recycled . | . . . . Retrieved Matter . | . . . . Parts Self-Destructed . | . . . . Prevented . | . . . . Kills | -11 -10 -9 -9 ------- Run | Yrd Mat Mat Sto Combat Hostiles Destroyed 53 | . 16 24 13 Guns 10 | . 3 7 . Cannons 42 | . 13 17 12 Classes Destroyed 10 | . 6 3 1 Worker 3 | . 2 1 . Builder 1 | . . 1 . Hauler 3 | . . 2 1 Recycler 5 | . 4 . 1 Operator 1 | . 1 . . Watcher 6 | . 3 2 1 Swarmer 17 | . 3 11 3 Grunt 26 | . 13 8 5 Brawler 1 | . . . 1 Sentry 9 | . . 5 4 Best Kill Streak 8 | . 8 8 6 Combat Bots Only 5 | . 5 5 4 Max Kills in Single Turn 2 | . 2 2 1 Gunslinging . | . . . . Exploded . | . . . . Melee . | . . . . Uniques/NPCs Destroyed . | . . . . Combat | -11 -10 -9 -9 -------- Run | Yrd Mat Mat Sto Hostile Shots Fired 293 | . 103 127 63 Missed 83 | . 31 32 20 Hits 210 | . 72 95 43 Projectile 210 | . 72 95 43 Critical Strikes 4 | . 1 3 . Damage Taken 2651 | . 844 1380 427 Core 463 | . 57 349 57 Absorbed by Shields . | . . . . Regen/Repaired (Parts) 94 | . . 94 . Core Remaining (%) 88 | 100 77 . . Volleys Fired 174 | . 62 71 41 Largest 2 | . 2 2 2 Hottest 136 | . 60 124 136 Shots Fired 348 | . 125 142 81 Gun 51 | . 19 32 . Cannon 297 | . 106 110 81 Launcher . | . . . . Special . | . . . . Kinetic 177 | . 125 52 . Thermal 171 | . . 90 81 Explosive . | . . . . Electromagnetic . | . . . . Robot Hit Streak 14 | . 9 14 9 Robot Miss Streak 7 | . 7 5 3 Penetration Max . | . . . . Secondary Targets . | . . . . Shots Hit Robots 195 | . 72 77 46 Core Hits 81 | . 31 35 15 Critical Kills 1 | . . . 1 Critical Parts Destroyed . | . . . . Critical Strikes 6 | . 3 2 1 Burn 2 | . . 2 . Meltdown 1 | . . . 1 Blast 3 | . 3 . . Melee Attacks 19 | . 10 6 3 Impact 19 | . 10 6 3 Slashing . | . . . . Piercing . | . . . . Sneak Attacks . | . . . . Combat Hostiles . | . . . . Follow-up Attacks . | . . . . Damage Inflicted 3485 | . 1213 1387 885 Guns 433 | . 112 321 . Cannons 3049 | . 1099 1065 885 Explosions . | . . . . Melee . | . . . . Ramming 3 | . 2 1 . Kinetic 1722 | . 1211 511 . Thermal 1760 | . . 875 885 Explosive . | . . . . Electromagnetic . | . . . . Impact . | . . . . Slashing . | . . . . Piercing . | . . . . Highest Corruption 5 | . 3 5 5 Average Corruption 3 | . 2 4 5 Corruption Purged . | . . . . Corruption Blocked . | . . . . Effects 55 | . 8 35 12 Message Errors 6 | . . 5 1 Matter Fused 15 | . 2 10 3 Heat Flow Errors 2 | . 1 . 1 Energy Discharges 12 | . 1 9 2 Parts Rejected 1 | . . . 1 Data Loss (minor) 10 | . 1 5 4 Data Loss (major) 3 | . 1 2 . Misfires 3 | . 1 2 . Alerts 2 | . 1 1 . Weapon Failures 1 | . . 1 . Overload Shots . | . . . . Overflow Damage 13 | . 2 10 1 Projectiles 13 | . 2 10 1 Explosions . | . . . . Melee . | . . . . Knockbacks 26 | . 21 5 . Impact . | . . . . Kinetic 20 | . 15 5 . Secondary 6 | . 6 . . Self-Inflicted Damage . | . . . . Shots . | . . . . Rammed . | . . . . Targets Rammed 2 | . 1 1 . Kicked 2 | . 1 1 . Crushed . | . . . . Highest Temperature 554 | . 301 300 554 Average Temperature 123 | . 128 83 155 Received Heat Transfer 879 | . 465 336 78 Effects 14 | . 1 . 13 Energy Bleed 1 | . . . 1 Interference 2 | . . . 2 Matter Decay 5 | . 1 . 4 Short Circuit 3 | . . . 3 Damage (major) 3 | . . . 3 Siege Activations . | . . . . Martial Activations . | . . . . Shielding Activations . | . . . . Robots Disrupted . | . . . . Combat Hostiles . | . . . . Robots Corrupted . | . . . . Combat Hostiles . | . . . . Parts Fried . | . . . . Impact Corruptions . | . . . . Robots Melted 1 | . . . 1 Combat Hostiles 1 | . . . 1 Parts Melted 7 | . . 1 6 Heat Transferred 3589 | . . 1998 1591 Parts Sabotaged . | . . . . Parts Stolen . | . . . . Parts Stripped . | . . . . Power Chain Reactions . | . . . . Alert | -11 -10 -9 -9 ------- Run | Yrd Mat Mat Sto Maximum Alert Level 1 | . . 1 1 Low Security (%) 84 | 100 100 76 69 Level 1 15 | . . 23 30 Level 2 . | . . . . Level 3 . | . . . . Level 4 . | . . . . Level 5 . | . . . . High Security . | . . . . Max Security . | . . . . Peak Influence 376 | . 147 376 308 Initial 144 | . . 55 144 Average 108 | . 79 115 186 Influence Increases 1931 | . 558 785 588 Destroy 0b10 Robot/C 1120 | . 320 480 320 Destroy 0b10 Robot/NC 95 | . 50 30 15 Destroy Leader 308 | . 76 128 104 Allied During Kill 56 | . . . 56 Trap Triggered on 0b10 10 | . 10 . . Successful Hack 71 | . 17 23 31 Select Force Hacks 120 | . 60 60 . Disable Machine 120 | . 15 45 60 Destroy Structure 16 | . 10 4 2 Lose Combat Pursuer 15 | . . 15 . Influence Decreases 1623 | . 427 573 623 Entered New Map 275 | . . 76 199 Time Decay 1068 | . 407 447 214 Lost Part 80 | . 20 50 10 Lost Ally 200 | . . . 200 Squads Dispatched 15 | . 6 4 5 Investigation 10 | . 5 3 2 Extermination . | . . . . Reinforcement 3 | . 1 1 1 Assault . | . . . . Garrison 2 | . . . 2 Intercept . | . . . . Searches Triggered . | . . . . Construction Impeded . | . . . . Haulers Reinforced . | . . . . Active Scanning Responses . | . . . . Cargo Convoy Interrupts . | . . . . Stealth | -11 -10 -9 -9 --------- Run | Yrd Mat Mat Sto Distress Signals 3 | . 1 1 1 Communications Jammed . | . . . . Distress Signals . | . . . . Times Spotted 67 | . 21 27 19 Peak Tracking Total 7 | . 7 5 5 Tactical Retreats 1 | . . 1 . Traps | -11 -10 -9 -9 ------- Run | Yrd Mat Mat Sto Traps Triggered 3 | . 1 1 1 Indirectly . | . . . . Trap Hack Attempts . | . . . . Triggered . | . . . . Disarmed . | . . . . Reprogrammed 1 | . 1 . . Reused 1 | . 1 . . Traps Extracted . | . . . . Installed . | . . . . Triggered 1 | . 1 . . Machines | -11 -10 -9 -9 ---------- Run | Yrd Mat Mat Sto Machines Disabled 8 | . 1 3 4 Max in Single Turn 1 | . 1 1 1 Machines Repaired . | . . . . Machines Dismantled . | . . . . Machines Sabotaged . | . . . . Overloaded Fab Kills . | . . . . Hacking | -11 -10 -9 -9 --------- Run | Yrd Mat Mat Sto Machines Accessed 17 | . 9 5 3 Terminals 12 | . 7 2 3 Fabricators . | . . . . Repair Stations 1 | . . 1 . Recycling Units 4 | . 2 2 . Scanalyzers . | . . . . Garrison Access . | . . . . Total Hacks 64 | . 31 18 15 Successful 34 | . 15 10 9 Failed 30 | . 16 8 6 Catastrophic 5 | . 4 . 1 Database Lockouts . | . . . . Manual 43 | . 18 10 15 Terminals 46 | . 25 6 15 Fabricators . | . . . . Repair Stations 4 | . . 4 . Recycling Units 14 | . 6 8 . Scanalyzers . | . . . . Garrison Access . | . . . . Terminal Hacks 13 | . 9 . 4 Robot Analysis 3 | . . . 3 Prototype ID Bank 1 | . 1 . . Branch Access Points 1 | . 1 . . Terminal Index 2 | . 1 . 1 Alert Level 3 | . 3 . . Reprogram Traps 1 | . 1 . . Maintenance Status 1 | . 1 . . Recall Investigation 1 | . 1 . . Fabricator Hacks . | . . . . Repair Station Hacks 4 | . . 4 . Scan Component 2 | . . 2 . Repair 2 | . . 2 . Recycling Unit Hacks 5 | . 3 2 . Report Inventory 3 | . 2 1 . Retrieve Components 2 | . 1 1 . Scanalyzer . | . . . . Garrison Access Hacks . | . . . . Unauthorized Hacks 12 | . 3 4 5 Terminals 8 | . 1 2 5 Botnet 6 | . 1 2 3 Detonate 1 | . . . 1 Sabotage 1 | . . . 1 Fabricators . | . . . . Repair Stations . | . . . . Recycling Units 4 | . 2 2 . Tunnel 4 | . 2 2 . Scanalyzers . | . . . . Garrison Access . | . . . . Data Cores Recovered . | . . . . Used . | . . . . Hacking Detections 15 | . 7 5 3 Full Trace Events 3 | . 2 1 . Feedback Events 1 | . 1 . . Corruption 1 | . 1 . . Feedback Blocked . | . . . . Robot Schematics Acquired . | . . . . Robots Built . | . . . . Authchips . | . . . . Time . | . . . . Total Robot Build Rating . | . . . . Part Schematics Acquired . | . . . . Parts Built . | . . . . Authchips . | . . . . Time . | . . . . Total Part Build Rating . | . . . . Parts Repaired 2 | . . 2 . Time 52 | . . 52 . Parts Recycled . | . . . . Recycled Matter . | . . . . Retrieved Matter . | . . . . Retrieved Components 16 | . 10 6 . Parts Scanalyzed . | . . . . Part Schematics Acquired . | . . . . Parts Damaged . | . . . . Bothacking | -11 -10 -9 -9 ------------ Run | Yrd Mat Mat Sto Used RIF Installer . | . . . . Robots Hacked . | . . . . Non-combat . | . . . . Combat . | . . . . Robot Hacks Applied . | . . . . Relay Couplers Released . | . . . . Fabnet Peak Effective % . | . . . . Robots Rewired . | . . . . Allies Hacked . | . . . . Hacks Repelled . | . . . . Allies | -11 -10 -9 -9 -------- Run | Yrd Mat Mat Sto Total Allies 10 | . . . 10 Largest Group 10 | . . . 10 Highest-Rated Group 88 | . . . 88 Highest-Rated Ally 16 | . . . 16 Total Orders . | . . . . Ally Attacks 33 | . . . 33 Total Damage 190 | . . . 190 Kills 3 | . . . 3 Allies Corrupted . | . . . . Allies Melted . | . . . . Intel | -11 -10 -9 -9 ------- Run | Yrd Mat Mat Sto Active Infowar (turns) 1994 | . . 1566 428 Sensors 1689 | . . 1566 123 Terrain 305 | . . . 305 Robot Analysis Total 3 | . . . 3 Derelict Logs Recovered . | . . . . Drone Launches . | . . . . Drone Recoveries . | . . . . Exploration | -11 -10 -9 -9 ------------- Run | Yrd Mat Mat Sto Turns Passed 3401 | 71 1304 1571 455 Spaces Moved 1477 | 40 638 629 170 Core 4 | 4 . . . Treads 527 | 36 280 41 170 Legs 946 | . 358 588 . Wheels . | . . . . Hover . | . . . . Flight . | . . . . Fastest Speed 50 | 50 120 160 160 Average Speed 173 | 149 164 188 160 Slowest Speed 240 | 160 190 240 160 Overloaded Moves . | . . . . Propulsion Burnouts . | . . . . Robots Hopped . | . . . . Potential Cave-ins 4 | . 4 . . Cave-ins Triggered 1 | . . 1 . Exploration Rate (%) 46 | 5 92 55 33 Regions Visited 3 Branch Regions 1 Pre-discovered Areas 4 | . 2 2 . Known Exits Taken 1 | . . 1 . Unknown Exits Taken 2 | 1 1 . . Scrap Searched . | . . . . Spaces Dug 12 | . 9 3 . Terrain Destroyed 12 | . 9 3 . Melee 12 | . 9 3 . Projectile . | . . . . AOE . | . . . . Terrain Rammed . | . . . . Walls Destroyed . | . . . . Machines Disabled . | . . . . Actions | -11 -10 -9 -9 --------- Run | Yrd Mat Mat Sto Total 1947 | 49 758 870 270 Wait 120 | . 7 85 28 Move 1474 | 39 637 628 170 Hop . | . . . . Pick Up 35 | 4 12 13 6 Fast Attach 24 | 6 5 13 . Attach 13 | . 1 8 4 Detach 1 | . . 1 . Swap 37 | . 11 18 8 Drop 46 | . 12 26 8 Fire 174 | . 62 71 41 Melee 19 | . 10 6 3 Ram . | . . . . Kick 2 | . 1 1 . Crush . | . . . . Escape Stasis 2 | . . . 2 Rewire . | . . . . Trap . | . . . . Miscellaneous . | . . . . Route ------- -11/Scrapyard -10/Materials (discovered 4 exits: *Mat x3 / *Min) -9/Materials (discovered 4 exits: *Mat x2 / *Min / *Sto) -9/Storage History --------- Turn | Location | Event 8 | -11/Scrapyard | Discovered new exit (range 14) 72 | -11/Scrapyard | Entered Materials 303 | -10/Materials | Discovered new exit (range 4) 314 | -10/Materials | Build established: Mutant 559 | -10/Materials | Discovered new exit (range 15) 565 | -10/Materials | Identified exit to Mines 670 | -10/Materials | Discovered new exit (range 12) 1045 | -10/Materials | Discovered new exit (range 4) 1376 | -10/Materials | Entered another Materials area 1376 | -9/Materials | Evolved 2 slots: Utility x2 1658 | -9/Materials | Crushed by falling debris 1733 | -9/Materials | Discovered new exit (range 6) 1740 | -9/Materials | Identified exit to Mines 1931 | -9/Materials | Repaired Heat Sink 1966 | -9/Materials | Repaired Lgt. Cannon 1998 | -9/Materials | Discovered new exit (range 5) 2172 | -9/Materials | Core integrity fell below 50% 2491 | -9/Materials | Discovered new exit (range 5) 2533 | -9/Materials | Identified exit to Materials 2724 | -9/Materials | Core integrity fell below 20% 2923 | -9/Materials | Discovered new exit (range 16) 2946 | -9/Materials | Identified exit to Storage 2947 | -9/Materials | Entered Storage 3130 | -9/Storage | Assisted by bots powering up and referring to "LRC-V3" 3204 | -9/Storage | Garrison activated, responded to threat 3263 | -9/Storage | Lost 4 allies 3332 | -9/Storage | Lost 5 allies 3402 | -9/Storage | Destroyed by G-34 Mercenary with Small Laser Last Messages --------------- 03355_ K-01 Serf collects debris. 03358_ W-16 Scout destroyed. 03358_ K-01 Serf collects debris. 03361_ Triggered Alarm Trap. 03361_ An alarm sounds. 03361_ ALERT: Alarm triggered, dispatching investigation squad. 03373_ Y-45 Defender destroyed. 03374_ K-01 Serf collects debris. 03375_ R-06 Scavenger collects Lgt. Treads. 03377_ U-05 Engineer lays Concrete. 03378_ R-06 Scavenger collects Ion Engine. 03379_ U-05 Engineer lays Concrete. 03379_ K-01 Serf collects debris. 03380_ U-05 Engineer lays Concrete. 03382_ K-01 Serf collects debris. 03383_ R-06 Scavenger collects Aluminum Leg. 03383_ U-05 Engineer lays Concrete. 03392_ Heat Sink melted. 03392_ G-34 Mercenary destroyed. Map ----- +----------------------------------------------------+ | | | | | ????????????????????????????????????????????????? | | ????????????????????????????????????????????????? | | ????????????????????????????????????????????????? | | ????????????????????????????????????????????????? | | ????????????????????????????????????????????????? | | ????????????????????????????????????????????????? | | ????????????????????????????????????????????????? | | ????????????????????????????????????????????????? | | ????????????????????????????????????????????????? | | ????????????????????????????????????????????????? | | ?????????????????????#??????????????????????????? | | ??????????????????????????"?????????????????????? | | ????????????????????????????????????????????????? | | ????????????????????????????????????????????????? | | ????????????????????????????????????????????????? | | ??????????????????????###########???????????????? | | ?????????????????????? #???????????????? | | ????????????????? ????# """ #???????????????? | | ??????????????? ??????# "T" #?? #???????????? | | ??????????????????##??# " " # #???????????? | | ???????????????????#??# o![ + ?????????????? | | ?????????????#????????# ]%g #???????????????? | | ??????????????????????#= =*! = #???????????????? | | ??????????? ???#?????#!*@%gu #???????????????? | | ??????????????????????##+##/#####???????????????? | | ????????????????#???#??#% #???????????????????? | | ?????????#??#?????????## #?#???? ????????????? | | ???????????????????????# #??#??? #???????????? | | ????????????????????#??# ##### #???????????? | | ?????????#??############ #???????????? | | ????????????# """ """ ## +???????????? | | ??????????### """ "" =##= """" #???????????? | | ??????????#"" """ """!#[% """" #???????????? | | ??????????#"T =%/%% """" #???????????? | | ???? ?????#"" %# """ #???????????? | | ????? ????### =! #![ !"" " #???????????? | | ????????????# %[ #% %=%* ###?????????? | | ????????????# ]=] # % +?????????? | | ????????????# ######### = ##??????????? | | ????????????########### ##"T"# ! #???????????? | | "?????? ###### =% #???????????? | | ?????????#????######### #?#???? ?????????? | | ???????????????????#?## #?????? ????????? | | ?????????????????????## #?#????? ?? ????????? | | ???????????????????####+###?????? ????????????? | | ???????????????????# #??#??##??????????????? | | ????????????????#?## /#?????????????????????? | | ??????????????#????# ! ! !#?????????????????????? | +----------------------------------------------------+ Best States ------------- Heat Dissipation 42 Energy Generation 12 Energy Capacity 265 Matter Stores 300 Matter Capacity 300 Sight Range 16 Robot Scan Range 14 Terrain Scan Range 14 Terrain Scan Density 10 Armor Coverage 150 Evasion (%) 55 Recoil Reduction 2 Item Schematics ----------------- None Robot Schematics ------------------ None Fabricated ------------ Nothing Repaired ---------- Heat Sink | 53% | -9/Materials Lgt. Cannon | 33% | -9/Materials Alien Tech Used ----------------- None Achievements -------------- None Challenges ------------ None Game ------ Seed SmartbombProtonExtractor Manual? 0 Play Time 00:37:39 Cumulative 56.4 hours Start 2025.05.14 @ 13:54:12 End 2025.05.14 @ 14:59:42 Sessions 3 Manual Loads 0 Difficulty Rogue Special Mode None Game No. 54 Rogue 54 Adventurer 0 Explorer 0 Win Type - Total 0 Types 0/0/0/0/0/0/0/0/0/0 Lore% 47 Gallery% 42 Achievement% 37 Wizard Run 0 Options --------- Layout 1 ASCII 0 Keyboard 0 Movement Mouse Keybinds 0 Fullscreen 1 Font 16/SmallcapsGlow Map View 55x38 Zoom Use 0% Tactical HUD 1 Map Filters NONE Filters NONE Steam 1 RUN: b66c05bd-8a8a-41b2-a5d1-bfdb07e1b124